fUST/lending_fUST_20250212
["ID","MTS","AMOUNT","RATE_DAILY","PERIOD"]
[352805864,1739332246318,-500.0,0.00014759,2]
[352805865,1739332246328,-500.0,0.00014759,2]
[352805866,1739332246338,-151.0,0.00014759,2]
[352805868,1739332246352,-500.0,0.00014759,2]
[352805869,1739332246363,-151.0,0.00014759,2]
[352805870,1739332246373,-500.0,0.00014759,2]
[352805871,1739332246383,-151.0,0.00014759,2]
[352805872,1739332246393,-584.4091153,0.00014759,2]
[352805873,1739332246403,-151.0,0.00014759,2]
[352805874,1739332246413,-177.581064,0.00014759,2]
[352805875,1739332246423,-183.01,0.00014759,2]
[352805876,1739332246432,-500.0,0.00014759,2]
[352805877,1739332246442,-525.21,0.00014759,2]
[352805878,1739332246452,-155.475813,0.00014759,2]
[352805879,1739332246461,-782.89,0.00014759,2]
[352805880,1739332246471,-539.6,0.00014759,2]
[352805881,1739332246480,-6008.09,0.00014759,2]
[352805882,1739332246490,-1033.39,0.00014759,2]
[352805883,1739332246499,-932.84,0.00014759,2]
[352805884,1739332246508,-151.0,0.00014759,2]
[352805885,1739332246517,-575.42336901,0.00014772,2]
[352805886,1739332246527,-200.0,0.000148,7]
[352805887,1739332246536,-200.0,0.000148,8]
[352805888,1739332246546,-200.0,0.000148,7]
[352805889,1739332246558,-420.0,0.00014825,2]
[352805890,1739332246568,-165.1292847,0.00014849,2]
[352805891,1739332246578,-164.367206,0.0001489,2]
[352805892,1739332246588,-108092.68702982,0.0001489,2]
[352805893,1739332246610,-54160.19063644,0.0001489,2]
[352805894,1739332246622,-23008.10899728,0.0001489,2]
[352805895,1739332246714,-586.19180326,0.00013526,2]
[352805896,1739332246724,-1532.05838341,0.0001489,2]
[352805897,1739332246736,-18393.28214738,0.0001489,2]
[352805898,1739332246812,-151.0,0.000145,2]
[352805899,1739332246825,-151.0,0.000146,2]
[352805900,1739332246837,-151.0,0.000147,2]
[352805901,1739332246849,-288.32642241,0.0001489,2]
[352805902,1739332246863,-791.2784889,0.0001489,2]
[352805903,1739332246880,-14716.06789336,0.0001489,2]
[352805904,1739332246891,-826.68,0.00014895,2]
[352805905,1739332246901,-500.0,0.00014895,2]
[352805906,1739332246912,-1055.84,0.00014895,2]
[352805907,1739332246922,-2477.36,0.00014895,2]
[352805908,1739332246932,-500.0,0.00014896,2]
[352805909,1739332246942,-970.75,0.00014896,2]
[352805910,1739332246953,-1126.8,0.00014896,2]
[352805911,1739332246968,-500.0,0.00014896,2]
[352805912,1739332246978,-601.53238847,0.00014896,2]
[352805913,1739332246988,-7299.9443429,0.00014896,2]
[352805914,1739332247002,-1585.6256571,0.00014896,2]
[352805915,1739332247012,-500.0,0.00014896,2]
[352805916,1739332247022,-500.0,0.00014896,2]
[352805917,1739332247034,-546.11,0.00014896,2]
[352805918,1739332247045,-3330.12,0.00014896,2]
[352805919,1739332247055,-685.29,0.00014896,2]
[352805920,1739332247065,-334.95,0.00014896,2]
[352805921,1739332247074,-334.95,0.00014896,2]
[352805922,1739332247083,-500.0,0.00014896,2]
[352805923,1739332247092,-500.0,0.00014896,2]
[352805924,1739332247107,-500.0,0.00014896,2]
[352805925,1739332247117,-500.0,0.00014896,2]
[352805926,1739332247127,-500.0,0.00014896,2]
[352805927,1739332247138,-782.89,0.00014896,2]
[352805928,1739332247147,-6008.09,0.00014896,2]
[352805929,1739332247158,-1033.39,0.00014896,2]
[352805930,1739332247169,-932.84,0.00014896,2]
[352805931,1739332247179,-151.0,0.000149,2]
[352805932,1739332247192,-151.0,0.000149,2]
[352805933,1739332247213,-1908.76405334,0.00014992,2]
[352805934,1739332247227,-151.0,0.00014992,2]
[352805935,1739332247237,-30695.67576507,0.00014999,2]
[352805936,1739332247249,-1000.9,0.00014999,2]
[352805937,1739332247315,-500.0,0.00013526,2]
[352805938,1739332247325,-6672.22631319,0.00014999,2]
[352805939,1739332247547,-48831.93521846,0.00014999,2]
[352805940,1739332247561,-11817.68680416,0.00014999,2]
[352805941,1739332247573,-948.37496195,0.00014999,2]
[352805944,1739332424864,638.75,0.00010959,2]
[352805947,1739332849447,-300.0,0.00016192,60]
[352805950,1739333134134,-500.0,0.00013287,2]
[352805951,1739333134156,-238.02488985,0.00013325,2]
[352805952,1739333134177,-744.73175361,0.00013424,2]
[352805953,1739333134197,-157.31245942,0.00013425,2]
[352805954,1739333168596,400.0,0.00010685,2]
[352805955,1739333246088,-450.0,0.00013424,2]
[352805956,1739333251099,-304.24237411,0.00013424,2]
[352805957,1739333251120,-40.13099819,0.00013425,2]
[352805958,1739333251142,-300.0,0.00013522,2]
[352805959,1739333251165,-20.29858814,0.00013523,2]
[352805960,1739333254086,-758.33141186,0.00013523,2]
[352805961,1739333254109,-500.0,0.00013523,2]
[352805962,1739333254133,-500.0,0.00013523,2]
[352805963,1739333254157,-988.1,0.00013523,2]
[352805964,1739333254179,-505.87092413,0.00013523,2]
[352805965,1739333254200,-602.83431131,0.00013523,2]
[352805966,1739333254224,-283.25848435,0.00013523,2]
[352806011,1739333432808,-375.0,0.00013424,2]
[352806037,1739333438473,-284.96207732,0.00013424,2]
[352806038,1739333438483,-172.41216202,0.00013426,2]
[352806039,1739333438494,-300.0,0.00013522,2]
[352806040,1739333438504,-425.54554473,0.00013523,2]
[352806041,1739333438514,-500.0,0.00013523,2]
[352806042,1739333438524,-500.0,0.00013523,2]
[352806043,1739333438534,-1022.41,0.00013523,2]
[352806044,1739333438543,-500.0,0.00013523,2]
[352806045,1739333438554,-500.0,0.00013523,2]
[352806046,1739333438563,-500.0,0.00013523,2]
[352806047,1739333438573,-500.0,0.00013523,2]
[352806048,1739333438584,-500.0,0.00013523,2]
[352806050,1739333438593,-500.0,0.00013523,2]
[352806052,1739333438602,-500.0,0.00013523,2]
[352806053,1739333438613,-500.0,0.00013523,2]
[352806054,1739333438623,-523.36,0.00013523,2]
[352806055,1739333438633,-656.73,0.00013523,2]
[352806057,1739333438643,-500.0,0.00013523,2]
[352806059,1739333438653,-500.0,0.00013523,2]
[352806061,1739333438663,-500.0,0.00013523,2]
[352806062,1739333438673,-500.0,0.00013523,2]
[352806063,1739333438682,-746.18,0.00013523,2]
[352806064,1739333438692,-155.8,0.00013523,2]
[352806065,1739333438701,-500.0,0.00013523,2]
[352806066,1739333438711,-500.0,0.00013523,2]
[352806067,1739333438720,-500.0,0.00013523,2]
[352806068,1739333438729,-500.0,0.00013523,2]
[352806069,1739333438739,-500.0,0.00013523,2]
[352806070,1739333438748,-500.0,0.00013523,2]
[352806071,1739333438758,-500.0,0.00013523,2]
[352806072,1739333438768,-539.6,0.00013523,2]
[352806073,1739333438778,-946.92,0.00013523,2]
[352806074,1739333438787,-500.0,0.00013523,2]
[352806075,1739333438797,-502.41837697,0.00013523,2]
[352806076,1739333438807,-5775.53,0.00013523,2]
[352806077,1739333438816,-990.33,0.00013523,2]
[352806078,1739333438826,-500.0,0.00013524,2]
[352806079,1739333438836,-500.0,0.00013524,2]
[352806080,1739333438846,-500.0,0.00013524,2]
[352806081,1739333438857,-500.0,0.00013524,2]
[352806082,1739333438866,-500.0,0.00013524,2]
[352806083,1739333438876,-500.0,0.00013524,2]
[352806084,1739333438886,-500.0,0.00013524,2]
[352806085,1739333438895,-41.36561143,0.00013524,2]
[352806086,1739333438908,-458.63438857,0.00013524,2]
[352806087,1739333438922,-500.0,0.00013524,2]
[352806088,1739333438932,-500.0,0.00013524,2]
[352806089,1739333438942,-500.0,0.00013524,2]
[352806090,1739333438951,-500.0,0.00013524,2]
[352806091,1739333438960,-500.0,0.00013524,2]
[352806092,1739333438970,-500.0,0.00013524,2]
[352806093,1739333438980,-500.0,0.00013524,2]
[352806094,1739333438989,-500.0,0.00013524,2]
[352806095,1739333438999,-500.0,0.00013524,2]
[352806096,1739333439009,-500.0,0.00013524,2]
[352806097,1739333439019,-503.59590257,0.00013524,2]
[352806098,1739333439029,-500.0,0.00013524,2]
[352806099,1739333439039,-500.0,0.00013524,2]
[352806100,1739333439048,-500.0,0.00013524,2]
[352806101,1739333439058,-500.0,0.00013524,2]
[352806102,1739333439067,-500.0,0.00013524,2]
[352806103,1739333439078,-12.86685735,0.00013524,2]
[352806104,1739333439090,-487.13314265,0.00013524,2]
[352806105,1739333439099,-500.0,0.00013524,2]
[352806106,1739333439109,-251.61151342,0.00013524,2]
[352806107,1739333439121,-248.38848658,0.00013524,2]
[352806108,1739333439130,-500.0,0.00013524,2]
[352806109,1739333439139,-500.0,0.00013524,2]
[352806110,1739333439151,-500.0,0.00013524,2]
[352806111,1739333439162,-500.0,0.00013524,2]
[352806112,1739333439172,-500.0,0.00013524,2]
[352806113,1739333439182,-619.81901567,0.00013524,2]
[352806114,1739333439191,-502.47128503,0.00013524,2]
[352806115,1739333439202,-500.0,0.00013524,2]
[352806116,1739333439213,-500.0,0.00013524,2]
[352806117,1739333439223,-500.0,0.00013524,2]
[352806118,1739333439233,-500.0,0.00013524,2]
[352806119,1739333439243,-500.0,0.00013524,2]
[352806120,1739333439254,-502.97337491,0.00013524,2]
[352806121,1739333439265,-500.0,0.00013524,2]
[352806122,1739333439276,-501.82496295,0.00013524,2]
[352806123,1739333439286,-500.0,0.00013524,2]
[352806124,1739333439295,-65.26437193,0.00013524,2]
[352806125,1739333439309,-434.73562807,0.00013524,2]
[352806126,1739333439319,-500.0,0.00013524,2]
[352806127,1739333439331,-520.00748832,0.00013524,2]
[352806128,1739333439341,-648.21681595,0.00013524,2]
[352806129,1739333439350,-500.0,0.00013524,2]
[352806130,1739333439364,-500.0,0.00013524,2]
[352806131,1739333439374,-500.0,0.00013524,2]
[352806132,1739333439383,-503.80540223,0.00013524,2]
[352806133,1739333439393,-500.0,0.00013524,2]
[352806134,1739333439403,-500.0,0.00013524,2]
[352806135,1739333439414,-500.0,0.00013524,2]
[352806136,1739333439423,-209.72721143,0.00013524,2]
[352806137,1739333439437,-291.43961845,0.00013524,2]
[352806138,1739333439446,-500.0,0.00013524,2]
[352806139,1739333439456,-208.98477237,0.00013524,2]
[352806140,1739333439466,-507.09090585,0.00013524,2]
[352806141,1739333439477,-500.0,0.00013524,2]
[352806142,1739333439487,-509.82507298,0.00013524,2]
[352806143,1739333439497,-500.0,0.00013524,2]
[352806144,1739333439507,-502.11629746,0.00013524,2]
[352806145,1739333439517,-500.0,0.00013524,2]
[352806146,1739333439526,-504.15519562,0.00013524,2]
[352806147,1739333439537,-500.0,0.00013524,2]
[352806148,1739333439547,-495.96016509,0.00013524,2]
[352806149,1739333439557,-313.84190715,0.00013524,2]
[352806150,1739333439566,-893.97,0.00013524,2]
[352806151,1739333439578,-500.0,0.00013524,2]
[352806152,1739333439588,-500.0,0.00013524,2]
[352806153,1739333439598,-500.0,0.00013524,2]
[352806154,1739333439608,-500.0,0.00013524,2]
[352806155,1739333439618,-500.0,0.00013524,2]
[352806156,1739333439628,-500.0,0.00013524,2]
[352806157,1739333439637,-502.39043693,0.00013524,2]
[352806158,1739333439647,-8515.34,0.00013524,2]
[352806159,1739333439657,-500.0,0.00013524,2]
[352806160,1739333439668,-500.0,0.00013524,2]
[352806161,1739333439677,-500.0,0.00013524,2]
[352806162,1739333439689,-346.59434901,0.00013524,2]
[352806163,1739333439698,-500.0,0.00013524,2]
[352806164,1739333439707,-500.0,0.00013524,2]
[352806165,1739333439716,-500.0,0.00013524,2]
[352806166,1739333439726,-502.59886123,0.00013524,2]
[352806167,1739333439736,-3259.9,0.00013524,2]
[352806168,1739333439746,-500.0,0.00013524,2]
[352806169,1739333439756,-500.0,0.00013524,2]
[352806170,1739333439767,-500.0,0.00013524,2]
[352806171,1739333439778,-500.0,0.00013524,2]
[352806172,1739333439788,-500.0,0.00013524,2]
[352806173,1739333439797,-500.0,0.00013524,2]
[352806174,1739333439807,-502.73792129,0.00013524,2]
[352806175,1739333439819,-501.13971128,0.00013524,2]
[352806176,1739333439829,-500.0,0.00013524,2]
[352806177,1739333439838,-500.0,0.00013524,2]
[352806178,1739333439848,-501.5848858,0.00013524,2]
[352806179,1739333439858,-500.0,0.00013524,2]
[352806180,1739333439868,-500.0,0.00013524,2]
[352806181,1739333439878,-505.11967869,0.00013524,2]
[352806182,1739333439887,-648.23767574,0.00013524,2]
[352806183,1739333439897,-500.0,0.00013524,2]
[352806184,1739333439907,-322.19477127,0.00013524,2]
[352806185,1739333439918,-500.0,0.00013524,2]
[352806186,1739333439927,-500.0,0.00013524,2]
[352806187,1739333439937,-500.0,0.00013524,2]
[352806188,1739333439947,-500.0,0.00013524,2]
[352806189,1739333439957,-500.0,0.00013524,2]
[352806190,1739333439967,-500.0,0.00013524,2]
[352806191,1739333439976,-503.61472975,0.00013524,2]
[352806192,1739333439986,-500.0,0.00013524,2]
[352806193,1739333439996,-500.0,0.00013524,2]
[352806194,1739333440007,-500.0,0.00013524,2]
[352806195,1739333440019,-500.0,0.00013524,2]
[352806196,1739333440029,-500.0,0.00013524,2]
[352806198,1739333440039,-500.0,0.00013524,2]
[352806199,1739333440049,-512.66101251,0.00013524,2]
[352806200,1739333440060,-500.0,0.00013524,2]
[352806201,1739333440071,-500.0,0.00013524,2]
[352806202,1739333440081,-500.0,0.00013524,2]
[352806203,1739333440091,-560.2337826,0.00013524,2]
[352806204,1739333440101,-500.0,0.00013524,2]
[352806207,1739333440269,-500.0,0.00013524,2]
[352806208,1739333440282,-500.0,0.00013524,2]
[352806209,1739333440293,-501.593771,0.00013524,2]
[352806210,1739333440303,-500.0,0.00013524,2]
[352806211,1739333440312,-500.0,0.00013524,2]
[352806212,1739333440322,-500.0,0.00013524,2]
[352806213,1739333440332,-501.37151388,0.00013524,2]
[352806214,1739333440342,-500.0,0.00013524,2]
[352806215,1739333440352,-500.0,0.00013524,2]
[352806216,1739333440368,-500.43828197,0.00013524,2]
[352806217,1739333440378,-550.80876211,0.00013524,2]
[352806218,1739333440386,-500.0,0.00013524,2]
[352806219,1739333440396,-500.0,0.00013524,2]
[352806220,1739333440407,-500.0,0.00013524,2]
[352806221,1739333440417,-500.0,0.00013524,2]
[352806222,1739333440428,-502.92775699,0.00013524,2]
[352806223,1739333440439,-500.0,0.00013524,2]
[352806224,1739333440451,-350.81570618,0.00013524,2]
[352806225,1739333440461,-500.0,0.00013524,2]
[352806226,1739333440472,-500.0,0.00013524,2]
[352806227,1739333440482,-500.0,0.00013524,2]
[352806228,1739333440492,-500.0,0.00013524,2]
[352806229,1739333440502,-500.0,0.00013524,2]
[352806230,1739333440511,-446.69485546,0.00013524,2]
[352806231,1739333440521,-500.0,0.00013524,2]
[352806232,1739333440531,-501.54846624,0.00013524,2]
[352806233,1739333440540,-500.0,0.00013524,2]
[352806234,1739333440550,-500.0,0.00013524,2]
[352806235,1739333440560,-500.0,0.00013525,2]
[352806236,1739333440570,-500.0,0.00013525,2]
[352806237,1739333440580,-279.74,0.00013525,2]
[352806238,1739333440589,-501.8015462,0.00013525,2]
[352806239,1739333440600,-500.0,0.00013525,2]
[352806240,1739333440610,-500.0,0.00013525,2]
[352806241,1739333440620,-500.0,0.00013525,2]
[352806242,1739333440630,-500.0,0.00013525,2]
[352806243,1739333440640,-500.0,0.00013525,2]
[352806244,1739333440651,-500.0,0.00013525,2]
[352806245,1739333440661,-500.0,0.00013525,2]
[352806246,1739333440672,-500.0,0.00013525,2]
[352806247,1739333440682,-500.0,0.00013525,2]
[352806248,1739333440692,-500.0,0.00013525,2]
[352806249,1739333440703,-500.0,0.00013525,2]
[352806250,1739333440714,-500.0,0.00013525,2]
[352806251,1739333440724,-500.0,0.00013525,2]
[352806252,1739333440734,-348.94316642,0.00013525,2]
[352806253,1739333440744,-500.0,0.00013525,2]
[352806254,1739333440754,-500.0,0.00013525,2]
[352806255,1739333440764,-500.0,0.00013525,2]
[352806256,1739333440780,-500.0,0.00013525,2]
[352806257,1739333440789,-500.0,0.00013525,2]
[352806258,1739333440799,-500.0,0.00013525,2]
[352806259,1739333440810,-500.0,0.00013525,2]
[352806260,1739333440820,-500.0,0.00013525,2]
[352806261,1739333440830,-500.0,0.00013525,2]
[352806262,1739333440840,-500.0,0.00013525,2]
[352806263,1739333440850,-500.0,0.00013525,2]
[352806264,1739333440860,-395.74793439,0.00013525,2]
[352806265,1739333440869,-500.0,0.00013525,2]
[352806266,1739333440879,-500.0,0.00013525,2]
[352806267,1739333440888,-500.0,0.00013525,2]
[352806268,1739333440898,-500.0,0.00013525,2]
[352806269,1739333440907,-500.0,0.00013525,2]
[352806270,1739333440918,-500.0,0.00013525,2]
[352806271,1739333440928,-500.0,0.00013525,2]
[352806272,1739333440938,-500.0,0.00013525,2]
[352806273,1739333440947,-500.0,0.00013525,2]
[352806274,1739333440957,-500.0,0.00013525,2]
[352806275,1739333440967,-500.0,0.00013525,2]
[352806276,1739333440977,-500.0,0.00013525,2]
[352806277,1739333440987,-500.0,0.00013525,2]
[352806278,1739333440997,-500.0,0.00013525,2]
[352806279,1739333441007,-500.0,0.00013525,2]
[352806280,1739333441016,-485.46775178,0.00013525,2]
[352806281,1739333441026,-500.0,0.00013525,2]
[352806282,1739333441036,-500.0,0.00013525,2]
[352806283,1739333441045,-500.0,0.00013525,2]
[352806284,1739333441055,-344.95541863,0.00013526,2]
[352806285,1739333441064,-508.4202854,0.00013526,2]
[352806286,1739333441073,-500.0,0.00013526,2]
[352806287,1739333441083,-500.0,0.00013526,2]
[352806288,1739333441093,-500.81014347,0.00013526,2]
[352806289,1739333441103,-500.0,0.00013526,2]
[352806290,1739333441113,-500.0,0.00013526,2]
[352806291,1739333441122,-500.0,0.00013526,2]
[352806292,1739333441132,-500.0,0.00013526,2]
[352806293,1739333441142,-500.0,0.00013526,2]
[352806294,1739333441152,-500.0,0.00013526,2]
[352806295,1739333441162,-500.0,0.00013526,2]
[352806296,1739333441173,-500.0,0.00013526,2]
[352806297,1739333441182,-500.0,0.00013526,2]
[352806298,1739333441192,-500.0,0.00013526,2]
[352806299,1739333441202,-500.0,0.00013526,2]
[352806300,1739333441212,-500.0,0.00013526,2]
[352806301,1739333441221,-500.0,0.00013526,2]
[352806302,1739333441231,-500.0,0.00013526,2]
[352806303,1739333441241,-500.0,0.00013526,2]
[352806304,1739333441250,-500.0,0.00013526,2]
[352806305,1739333441261,-338.53199913,0.00013526,2]
[352806306,1739333441271,-500.0,0.00013526,2]
[352806307,1739333441280,-500.0,0.00013526,2]
[352806308,1739333441290,-500.0,0.00013526,2]
[352806309,1739333441300,-501.78035983,0.00013526,2]
[352806310,1739333441309,-500.0,0.00013526,2]
[352806311,1739333441320,-500.0,0.00013526,2]
[352806312,1739333441329,-502.96608837,0.00013526,2]
[352806313,1739333441343,-500.0,0.00013526,2]
[352806314,1739333441360,-500.0,0.00013526,2]
[352806315,1739333441376,-500.0,0.00013526,2]
[352806316,1739333441391,-500.0,0.00013526,2]
[352806317,1739333441408,-500.0,0.00013526,2]
[352806318,1739333441422,-500.0,0.00013526,2]
[352806319,1739333441435,-500.0,0.00013526,2]
[352806320,1739333441449,-500.0,0.00013529,2]
[352806321,1739333441463,-500.0,0.0001366,2]
[352806322,1739333441475,-500.0,0.0001366,2]
[352806323,1739333441488,-500.0,0.0001366,2]
[352806324,1739333441501,-1022.41,0.0001366,2]
[352806325,1739333441515,-500.0,0.0001366,2]
[352806326,1739333441529,-500.0,0.0001366,2]
[352806327,1739333441543,-500.0,0.0001366,2]
[352806328,1739333441556,-500.0,0.0001366,2]
[352806329,1739333441571,-500.0,0.0001366,2]
[352806330,1739333441584,-584.03,0.0001366,2]
[352806331,1739333441596,-500.0,0.0001366,2]
[352806332,1739333441610,-523.36,0.0001366,2]
[352806333,1739333441622,-656.73,0.0001366,2]
[352806334,1739333441635,-500.0,0.0001366,2]
[352806335,1739333441649,-500.0,0.0001366,2]
[352806336,1739333441662,-500.0,0.0001366,2]
[352806337,1739333441676,-500.0,0.0001366,2]
[352806338,1739333441688,-746.18,0.0001366,2]
[352806339,1739333441699,-500.0,0.0001366,2]
[352806340,1739333441710,-500.0,0.0001366,2]
[352806341,1739333441723,-523.67543609,0.0001366,2]
[352806342,1739333441734,-500.0,0.0001366,2]
[352806343,1739333441748,-500.0,0.0001366,2]
[352806344,1739333441761,-500.0,0.0001366,2]
[352806345,1739333441773,-539.6,0.0001366,2]
[352806346,1739333441786,-946.92,0.0001366,2]
[352806347,1739333441799,-500.0,0.0001366,2]
[352806348,1739333441812,-5775.53,0.0001366,2]
[352806349,1739333441826,-990.33,0.0001366,2]
[352806350,1739333441840,-232.17,0.00013661,2]
[352806351,1739333441854,-500.0,0.00013661,2]
[352806352,1739333441864,-500.0,0.00013661,2]
[352806353,1739333441875,-490.61,0.00013661,2]
[352806354,1739333441885,-500.0,0.00013661,2]
[352806355,1739333441896,-558.16,0.00013661,2]
[352806356,1739333441908,-160.67942007,0.00013661,2]
[352806357,1739333441922,-500.0,0.00013661,2]
[352806358,1739333441936,-500.0,0.00013661,2]
[352806359,1739333441949,-451.63186984,0.00013661,2]
[352806360,1739333441961,-500.0,0.00013661,2]
[352806361,1739333441972,-592.42039046,0.00013661,2]
[352806362,1739333441985,-526.3897287,0.00013661,2]
[352806363,1739333441997,-504.607933,0.00013661,2]
[352806364,1739333442010,-500.0,0.00013661,2]
[352806365,1739333442025,-507.00901843,0.00013661,2]
[352806366,1739333442036,-500.0,0.00013661,2]
[352806367,1739333442047,-500.0,0.00013661,2]
[352806368,1739333442058,-504.09385091,0.00013661,2]
[352806369,1739333442069,-500.0,0.00013661,2]
[352806370,1739333442080,-500.0,0.00013661,2]
[352806371,1739333442091,-465.27544063,0.00013661,2]
[352806372,1739333442105,-464.38997811,0.00013661,2]
[352806373,1739333442118,-501.55974027,0.00013661,2]
[352806374,1739333442131,-167.92973331,0.00013661,2]
[352806375,1739333442144,-500.0,0.00013661,2]
[352806376,1739333442157,-500.0,0.00013661,2]
[352806377,1739333442168,-502.17235221,0.00013661,2]
[352806378,1739333442180,-501.89961858,0.00013661,2]
[352806379,1739333442193,-500.0,0.00013661,2]
[352806380,1739333442204,-347.53580468,0.00013661,2]
[352806381,1739333442216,-500.0,0.00013661,2]
[352806382,1739333442227,-500.0,0.00013661,2]
[352806383,1739333442239,-500.0,0.00013661,2]
[352806384,1739333442251,-386.11880192,0.00013661,2]
[352806385,1739333442263,-8515.34,0.00013661,2]
[352806386,1739333442276,-503.88641825,0.00013661,2]
[352806387,1739333442288,-500.0,0.00013661,2]
[352806388,1739333442300,-500.0,0.00013661,2]
[352806389,1739333442312,-500.0,0.00013661,2]
[352806390,1739333442324,-3259.9,0.00013661,2]
[352806391,1739333442339,-500.0,0.00013661,2]
[352806392,1739333442353,-512.03465305,0.00013661,2]
[352806393,1739333442369,-500.0,0.00013661,2]
[352806394,1739333442381,-607.150844,0.00013661,2]
[352806395,1739333442394,-500.0,0.00013661,2]
[352806396,1739333442407,-500.0,0.00013661,2]
[352806397,1739333442419,-500.0,0.00013661,2]
[352806398,1739333442432,-500.0,0.00013661,2]
[352806399,1739333442444,-500.0,0.00013661,2]
[352806400,1739333442458,-501.94285672,0.00013661,2]
[352806401,1739333442469,-500.0,0.00013661,2]
[352806402,1739333442481,-501.23111099,0.00013661,2]
[352806403,1739333442492,-501.18882861,0.00013661,2]
[352806404,1739333442505,-335.6025772,0.00013661,2]
[352806405,1739333442517,-501.10520536,0.00013661,2]
[352806406,1739333442528,-500.0,0.00013661,2]
[352806407,1739333442540,-500.96815387,0.00013661,2]
[352806408,1739333442552,-500.0,0.00013661,2]
[352806409,1739333442563,-500.0,0.00013661,2]
[352806410,1739333442575,-500.0,0.00013661,2]
[352806411,1739333442587,-311.96996259,0.00013661,2]
[352806412,1739333442600,-221.25258393,0.00013661,2]
[352806413,1739333442612,-500.0,0.00013661,2]
[352806414,1739333442625,-500.0,0.00013661,2]
[352806415,1739333442638,-500.0,0.00013662,2]
[352806416,1739333442774,-233.41,0.00013662,2]
[352806417,1739333442801,-500.0,0.00013662,2]
[352806418,1739333442814,-500.0,0.00013662,2]
[352806419,1739333442825,-500.0,0.00013662,2]
[352806420,1739333442835,-500.0,0.00013663,2]
[352806421,1739333442844,-311.45476809,0.00013663,2]
[352806422,1739333442855,-500.0,0.00013663,2]
[352806423,1739333442864,-505.67076895,0.00013663,2]
[352806424,1739333442874,-500.0,0.00013663,2]
[352806425,1739333442884,-500.0,0.00013663,2]
[352806426,1739333442894,-504.37975815,0.00013663,2]
[352806427,1739333442904,-509.25054958,0.00013663,2]
[352806428,1739333442913,-505.87244937,0.00013663,2]
[352806429,1739333442924,-500.0,0.00013663,2]
[352806430,1739333442934,-1000.0,0.00013698,2]
[352806431,1739333442943,-1000.0,0.00013698,2]
[352806432,1739333442953,-500.0,0.00013698,2]
[352806433,1739333442963,-500.0,0.00013698,2]
[352806435,1739333442972,-679.095953,0.00013699,2]
[352806437,1739333442982,-280.339151,0.00013699,2]
[352806438,1739333442991,-392.27044691,0.00013699,2]
[352806439,1739333443001,-260.72323367,0.00013699,2]
[352806440,1739333443011,-500.0,0.00013699,2]
[352806442,1739333443022,-500.0,0.00013699,2]
[352806444,1739333443032,-500.0,0.00013699,2]
[352806446,1739333443042,-500.0,0.00013699,2]
[352806448,1739333443052,-500.0,0.00013699,2]
[352806450,1739333443061,-500.0,0.00013699,2]
[352806452,1739333443071,-335.60702229,0.00013699,2]
[352806453,1739333443081,-500.0,0.00013699,2]
[352806455,1739333443091,-500.0,0.00013699,2]
[352806457,1739333443101,-500.0,0.00013699,2]